bitfinex/quotes_SOLUSD_20251214
["timestamp","ask_amount","ask_price","bid_price","bid_amount"]
[1765713850131,5.7,131.12,131.09,8.3]
[1765713850332,0.66,131.11,131.09,8.3]
[1765713850840,6.36,131.12,131.1,7.62776506]
[1765713851536,6.36,131.11,131.1,7.62776506]
[1765713852258,5.7,131.11,131.1,7.62776506]
[1765713852760,6.36,131.11,131.1,7.62776506]
[1765713852964,6.36,131.11,131.09,26.69845761]
[1765713853328,5.7,131.11,131.09,26.69845761]
[1765713853659,5.7,131.11,131.09,27.37845761]
[1765713853836,6.36,131.11,131.09,26.69845761]
[1765713854233,0.66,131.1,131.09,7.62834693]
[1765713854847,0.66,131.1,131.08,7.62892889]
[1765713855446,0.66,131.1,131.07,27.37328355]
[1765713855447,0.66,131.1,131.07,7.62933634]
[1765713855644,5.7,131.09,131.07,7.62933634]
[1765713855964,6.36,131.09,131.07,7.62933634]
[1765713856551,5.7,131.09,131.07,8.30933634]
[1765713856956,6.36,131.08,131.06,26.7043063]
[1765713858164,5.7,131.08,131.06,27.3843063]
[1765713858363,5.7,131.08,131.06,26.7043063]
[1765713859050,6.36,131.08,131.06,26.7043063]
[1765713859860,5.7,131.08,131.06,26.7043063]
[1765713860777,5.7,131.08,131.06,27.3843063]
[1765713861157,5.7,131.08,131.06,26.7043063]
[1765713861838,6.36,131.08,131.06,26.7043063]
[1765713862350,15.16994492,131.07,131.05,7.63045976]
[1765713862551,14.50994492,131.06,131.04,7.63123619]
[1765713862871,15.16994492,131.06,131.04,7.63123619]
[1765713863065,9.46994492,131.05,131.04,7.63123619]
[1765713863743,5.7,131.06,131.03,7.63184003]
[1765713863943,15.16994492,131.06,131.03,8.31184003]
[1765713864377,15.16994492,131.06,131.03,26.71144012]
[1765713864689,0.66,131.05,131.03,26.71144012]
[1765713866464,9.46994492,131.05,131.03,7.63184003]
[1765713866970,0.69,131.04,131.03,7.63184003]
[1765713867666,0.69,131.04,131.01,26.71500115]
[1765713867844,0.69,131.04,131.01,27.37500115]
[1765713868163,8.80994492,131.05,131.01,27.37500115]
[1765713868370,9.49994492,131.05,131.01,27.37500115]
[1765713868740,0.69,131.04,131.01,26.71500115]
[1765713869069,9.49994492,131.05,131.02,0.66]
[1765713869254,14.50994492,131.06,131.02,0.66]
[1765713869454,14.50994492,131.06,131.02,8.96]
[1765713869841,15.19994492,131.06,131.03,0.66]
[1765713870164,15.19994492,131.06,131.02,8.3]
[1765713870338,15.19994492,131.06,131.02,8.96]
[1765713870739,15.19994492,131.06,131.03,26.71144012]
[1765713870936,15.19994492,131.06,131.03,27.37144012]
[1765713871165,5.7,131.06,131.04,0.66]
[1765713871369,5.7,131.06,131.04,8.96]
[1765713871755,5.7,131.06,131.05,0.66]
[1765713872369,8.32,131.12,131.05,0.66]
[1765713872572,6.39,131.11,131.06,21.3470912]
[1765713872770,6.39,131.11,131.07,27.36328831]
[1765713873144,5.7,131.11,131.07,27.36328831]
[1765713873374,0.69,131.1,131.07,27.36328831]
[1765713873775,0.69,131.1,131.07,26.70328831]
[1765713874361,0.69,131.1,131.07,27.36328831]
[1765713874661,0.69,131.1,131.07,26.70328831]
[1765713876170,0.69,131.1,131.07,27.36328831]
[1765713876361,0.69,131.1,131.07,26.70328831]
[1765713877752,5.7,131.09,131.07,26.70328831]
[1765713877953,5.7,131.08,131.07,26.70328831]
[1765713878382,5.7,131.08,131.07,27.36328831]
[1765713880549,5.7,131.1,131.07,27.36328831]
[1765713880752,5.7,131.1,131.08,8.96]
[1765713880978,14.50994492,131.13,131.08,8.96]
[1765713881181,15.19994492,131.13,131.09,0.66]
[1765713881359,0.69,131.12,131.09,0.66]
[1765713882264,8.80994492,131.11,131.09,7.62834693]
[1765713882461,0.69,131.1,131.09,7.62834693]
[1765713883768,0.69,131.1,131.08,19.07129513]
[1765713884335,0.69,131.1,131.07,8.28951094]
[1765713884336,31.72994492,131.08,130.97,0.1]
[1765713884459,13.0470912,131.03,130.97,0.1]
[1765713884783,9.09426806,131.01,130.97,0.1]
[1765713884982,8.80994492,130.99,130.97,0.1]
[1765713885181,28.59619995,130.99,130.97,0.1]
[1765713885483,29.28619995,130.99,130.97,0.1]
[1765713885685,36.92037049,130.99,130.97,0.1]
[1765713886486,45.24037049,130.99,130.97,0.1]
[1765713887391,8.80994492,130.99,130.97,0.1]
[1765713889473,14.02,131.0,130.97,0.1]
[1765713889701,14.02,131.0,130.98,0.76]
[1765713889907,12.89409482,131.02,130.98,0.76]
[1765713890082,8.80994492,131.02,130.98,0.76]
[1765713890401,12.06681861,131.03,130.98,0.76]
[1765713890605,9.01,131.03,130.98,0.76]
[1765713891302,9.01,131.03,130.99,7.63417054]
[1765713891695,8.80994492,131.04,131.0,0.66]
[1765713893185,8.80994492,131.04,131.01,7.63300511]
[1765713893786,8.80994492,131.04,131.01,8.29300511]
[1765713894590,9.01,131.05,131.01,8.29300511]
[1765713894795,8.32,131.05,131.01,7.63300511]
[1765713895012,9.01,131.05,131.01,8.29300511]
[1765713895227,8.32,131.05,131.01,7.63300511]
[1765713895400,8.80994492,131.03,131.0,7.63345028]
[1765713895802,9.49994492,131.03,131.0,7.63345028]
[1765713896000,9.49994492,131.03,131.01,7.63295483]
[1765713896711,9.49994492,131.03,130.99,0.69]
[1765713897008,8.80994492,131.04,130.99,0.69]
[1765713897205,0.72,131.03,130.99,0.69]
[1765713899009,0.72,131.03,131.0,7.63358778]
[1765713899210,8.80994492,131.04,131.0,26.71755724]
[1765713899513,14.02,131.05,131.01,0.69]
[1765713899722,8.80994492,131.06,131.01,0.69]
[1765713900627,28.61913365,131.09,131.03,13.0470912]
[1765713900830,5.7,131.09,131.03,13.0470912]
[1765713901111,8.32,131.1,131.04,27.3994017]
[1765713901286,28.62,131.14,131.07,13.0470912]
[1765713901287,6.42,131.14,131.07,13.0470912]
[1765713901493,0.72,131.14,131.08,21.3470912]
[1765713901704,0.2,131.15,131.08,21.3470912]
[1765713901907,9.00994492,131.15,131.09,0.69]
[1765713902414,9.72994492,131.15,131.09,0.69]
[1765713903003,9.72994492,131.15,131.1,7.62776506]
[1765713903421,9.72994492,131.15,131.1,8.31776506]
[1765713903619,8.80994492,131.13,131.1,7.62776506]
[1765713903809,0.28432314,131.12,131.08,7.62851365]
[1765713904116,8.80994492,131.11,131.08,7.62851365]
[1765713904523,8.80994492,131.09,131.07,7.62944583]
[1765713904722,8.80994492,131.09,131.05,7.63052315]
[1765713904905,8.80994492,131.07,131.03,7.63165748]
[1765713905215,17.12994492,131.07,131.03,7.63165748]
[1765713905388,8.80994492,131.05,131.03,7.63165748]
[1765713906600,8.80994492,131.05,131.02,7.63242253]
[1765713906848,0.72,131.04,131.02,7.63242253]
[1765713908620,0.72,131.04,131.01,26.71444869]
[1765713911931,8.80994492,131.03,131.0,7.63339041]
[1765713912223,8.80994492,131.01,130.97,0.79]
[1765713912429,8.80994492,131.01,130.99,7.63377673]
[1765713913012,9.52994492,131.01,130.99,7.63377673]
[1765713913211,9.52994492,131.01,130.98,0.79]
[1765713913212,9.52994492,131.01,130.98,7.7347006]
[1765713913616,0.72,131.0,130.98,7.7347006]
[1765713914023,8.80994492,130.99,130.98,0.1]
[1765713914524,0.72,130.99,130.98,0.1]
[1765713914710,9.52994492,131.0,130.98,0.1]
[1765713917397,0.72,130.99,130.98,0.1]
[1765713918021,1.00432314,130.99,130.98,0.1]
[1765713918303,9.52994492,131.0,130.98,0.1]
[1765713918909,9.52994492,131.0,130.98,0.79]
[1765713918910,5.7,131.0,130.98,0.79]
[1765713920008,5.7,131.0,130.99,7.63417054]
[1765713921431,8.34,131.03,130.99,27.4095969]
[1765713921809,8.34,131.03,131.0,0.69]
[1765713922011,9.06,131.03,131.01,7.63300511]
[1765713922210,8.34,131.03,131.01,7.63300511]
[1765713922427,8.34,131.03,131.01,8.32300511]
[1765713923130,9.06,131.03,131.01,7.63300511]
[1765713923698,8.34,131.03,131.01,7.63300511]
[1765713924117,8.34,131.03,131.0,7.63358778]
[1765713924317,8.34,131.03,131.0,8.32358778]
[1765713926047,8.34,131.03,131.01,0.7]
[1765713926224,17.14994492,131.03,131.02,7.63242253]
[1765713927010,17.85994492,131.03,131.01,7.63287693]
[1765713927520,8.80994492,131.02,131.0,7.63338646]
[1765713928131,8.80994492,131.02,130.99,7.63417054]
[1765713928332,5.7,131.01,130.99,8.33417054]
[1765713928541,5.7,131.01,131.0,0.7]
[1765713929408,5.7,131.01,130.99,7.63417054]
[1765713930037,5.7,131.01,130.99,8.33417054]
[1765713930841,5.7,131.01,131.0,0.71]
[1765713931336,5.7,131.01,130.99,7.63417054]
[1765713931636,5.7,131.01,130.99,8.34417054]
[1765713933345,5.7,131.01,131.0,0.71]
[1765713934242,112.94,131.03,131.0,0.71]
[1765713934661,113.66,131.03,131.01,7.63300511]
[1765713934861,112.94,131.03,131.01,7.63300511]
[1765713935363,5.7,131.04,131.02,0.71]
[1765713935648,7.62900914,131.08,131.02,0.71]
[1765713935649,6.42,131.1,131.02,9.01]
[1765713935872,5.07627098,131.09,131.02,9.01]
[1765713936029,13.41627098,131.09,131.03,0.71]
[1765713936230,14.13627098,131.09,131.03,0.71]
[1765713936468,8.80994492,131.08,131.03,0.71]
[1765713936631,13.8862159,131.08,131.04,26.7094017]
[1765713936832,14.6062159,131.08,131.04,26.7094017]
[1765713937038,14.6062159,131.08,131.05,0.71]
[1765713937232,9.52994492,131.08,131.05,0.71]
[1765713937622,9.52994492,131.08,131.06,7.63009308]
[1765713938447,14.60347478,131.08,131.06,7.63009308]
[1765713939369,14.60347478,131.08,131.05,7.63067531]
[1765713939575,9.52994492,131.08,131.05,7.63067531]
[1765713940057,9.52994492,131.08,131.05,8.34067531]
[1765713940260,8.80994492,131.08,131.05,27.41736359]
[1765713940663,0.72,131.07,131.04,7.63109304]
[1765713940864,8.80994492,131.07,131.04,8.34109304]
[1765713941067,9.52994492,131.07,131.04,8.34109304]
[1765713941271,8.80994492,131.07,131.04,8.34109304]
[1765713942273,8.80994492,131.07,131.05,0.71]
[1765713942442,8.80994492,131.07,131.04,27.41923711]
[1765713946070,5.7,131.06,131.04,27.41923711]
[1765713947669,5.7,131.06,131.05,0.71]
[1765713947975,104.6,131.08,131.05,0.71]
[1765713949268,104.6,131.08,131.06,7.63009308]
[1765713949977,105.32,131.08,131.06,7.63009308]
[1765713950345,104.6,131.08,131.06,7.63009308]
[1765713951981,5.7,131.07,131.06,7.63009308]
[1765713954477,5.7,131.07,131.05,7.63067531]
[1765713955683,5.7,131.07,131.05,8.34067531]
[1765713956792,5.7,131.06,131.05,8.34067531]
[1765713960894,8.80994492,131.08,131.05,27.41736359]
[1765713961094,8.80994492,131.08,131.06,0.69]
[1765713961590,13.88668682,131.08,131.06,0.69]
[1765713961762,8.80994492,131.08,131.06,0.69]
[1765713962390,112.94,131.09,131.07,7.62951094]
[1765713962573,112.94,131.09,131.07,8.31951094]
[1765713962771,0.69,131.1,131.08,0.69]
[1765713962772,5.7,131.1,131.08,0.69]
[1765713962973,17.12994492,131.12,131.08,0.69]
[1765713963185,5.07698721,131.11,131.08,0.69]
[1765713963385,5.07698721,131.1,131.07,26.70328831]
[1765713963590,0.69,131.11,131.08,0.69]
[1765713963989,5.08110006,131.1,131.07,27.39328831]
[1765713964301,14.09063129,131.1,131.07,27.39328831]
[1765713964501,9.01,131.1,131.07,27.39328831]
[1765713964886,14.09026908,131.1,131.07,27.39328831]
[1765713965086,9.01,131.1,131.07,27.39328831]
[1765713965477,5.08002221,131.1,131.08,0.69]
[1765713965673,17.12994492,131.12,131.08,0.69]
[1765713965886,0.69,131.11,131.08,0.69]
[1765713966685,0.69,131.11,131.09,7.62834693]
[1765713967008,5.7,131.1,131.09,7.62834693]
[1765713967181,5.7,131.1,131.09,8.31834693]
[1765713969232,5.7,131.14,131.09,35.68921427]
[1765713969437,5.7,131.14,131.1,0.69]
[1765713969804,0.2,131.15,131.11,8.3]
[1765713970317,0.2,131.15,131.12,0.69]
[1765713970605,0.2,131.15,131.13,8.3]
[1765713970794,0.2,131.15,131.14,7.62543846]
[1765713970996,0.2,131.15,131.14,8.31543846]
[1765713972083,0.2,131.15,131.14,7.62543846]
[1765713972599,0.2,131.15,131.14,8.31543846]
[1765713973109,0.2,131.15,131.14,7.62543846]
[1765713973286,0.2,131.15,131.14,8.31543846]
[1765713974611,8.80994492,131.18,131.14,27.37903461]
[1765713974790,8.80994492,131.18,131.15,0.69]
[1765713975110,8.80994492,131.18,131.16,7.62427569]
[1765713975484,0.2,131.2,131.17,0.69]
[1765713976184,0.2,131.2,131.16,26.68496492]
[1765713976502,9.00994492,131.2,131.16,26.68496492]
[1765713976706,9.00994492,131.2,131.16,27.37496492]
[1765713976903,9.11994492,131.19,131.15,7.62485703]
[1765713977388,8.80994492,131.19,131.15,7.62485703]
[1765713977592,0.31,131.18,131.15,7.62485703]
[1765713978803,8.10633751,131.2,131.15,7.62485703]
[1765713978804,8.80994492,131.19,131.15,7.62485703]
[1765713979120,8.80994492,131.19,131.15,0.69]
[1765713979420,9.11994492,131.19,131.15,0.69]
[1765713980217,9.11994492,131.19,131.16,7.62427569]
[1765713980991,0.31,131.18,131.15,7.62472557]
[1765713981213,0.31,131.18,131.14,19.06314703]
[1765713981214,8.80994492,131.16,131.14,7.62533003]
[1765713981404,14.50994492,131.15,131.14,7.62533003]
[1765713982298,14.50994492,131.15,131.13,7.62601998]
[1765713982699,14.50994492,131.14,131.12,7.62649676]
[1765713982919,46.05994492,131.14,131.08,0.69]
[1765713983092,17.12994492,131.14,131.09,0.69]
[1765713983420,17.12994492,131.14,131.12,7.62655493]
[1765713984613,17.12994492,131.14,131.1,7.62776506]
[1765713984794,17.12994492,131.14,131.1,8.31776506]
[1765713985192,17.12994492,131.14,131.11,0.69]
[1765713987032,17.12994492,131.14,131.12,7.62660158]
[1765713987903,17.12994492,131.14,131.12,8.30660158]
[1765713988110,5.7,131.13,131.12,7.62660158]
[1765713988530,104.6,131.16,131.12,27.36310554]
[1765713988531,5.7,131.16,131.12,27.36310554]
[1765713988829,5.7,131.16,131.13,0.67]
[1765713989333,5.7,131.16,131.14,7.62543846]
[1765713989701,5.7,131.16,131.15,0.67]
[1765713990213,5.7,131.16,131.15,8.29485703]
[1765713991323,118.62,131.19,131.15,27.35699961]
[1765713991515,118.62,131.19,131.16,0.67]
[1765713992437,118.62,131.19,131.17,7.62369444]
[1765713992820,118.93,131.19,131.17,7.62369444]
[1765713994035,9.11994492,131.18,131.16,7.62409008]
[1765713994635,118.62,131.19,131.15,26.68699961]
[1765713994839,118.62,131.19,131.17,0.67]
[1765713995020,8.32,131.19,131.17,0.67]
[1765713995218,0.2,131.2,131.17,0.67]
[1765713996314,0.2,131.21,131.2,13.0470912]
[1765713996515,0.2,131.21,131.2,20.66904241]
[1765713996724,0.2,131.21,131.2,21.33904241]
[1765713997129,0.2,131.22,131.2,21.33904241]
[1765713997331,0.2,131.22,131.21,0.67]
[1765713997722,0.2,131.24,131.21,8.97]
[1765713997920,0.2,131.24,131.21,0.67]
[1765713998527,0.2,131.24,131.22,7.62078951]
[1765713999032,0.2,131.24,131.22,8.29078951]
[1765714000118,0.2,131.24,131.23,0.67]
[1765714000624,0.2,131.26,131.23,13.7170912]
[1765714001147,0.2,131.26,131.24,0.67]
[1765714002146,0.2,131.26,131.25,7.61904761]
[1765714002807,0.2,131.26,131.25,8.28904761]
[1765714005536,1e-08,131.26,131.25,8.28904761]
[1765714008036,1e-08,131.26,131.25,21.33613881]
[1765714009057,1e-08,131.26,131.25,8.57337075]
[1765714011044,1e-08,131.26,131.25,8.28904761]
[1765714014366,1e-08,131.26,131.25,8.57337075]
[1765714015271,1e-08,131.26,131.25,8.28904761]
[1765714015772,1e-08,131.26,131.25,7.61904761]
[1765714017068,1e-08,131.26,131.25,8.27904761]
[1765714018464,1e-08,131.26,131.25,7.61904761]
[1765714018671,0.51000001,131.26,131.25,7.61904761]
[1765714019056,1e-08,131.26,131.25,7.61904761]
[1765714019563,6.21000001,131.26,131.25,7.61904761]
[1765714020782,6.21000001,131.26,131.23,7.62020879]
[1765714020990,0.51,131.25,131.23,7.62020879]
[1765714021601,5.7,131.24,131.22,7.6206668]
[1765714021888,14.50994492,131.24,131.21,7.62116351]
[1765714022045,6.21,131.23,131.21,7.62116351]
[1765714022480,0.51,131.22,131.21,7.62116351]
[1765714022783,0.51,131.22,131.2,26.67631238]
[1765714024277,0.51,131.22,131.2,7.62195121]
[1765714024586,14.50994492,131.21,131.16,19.06000479]
[1765714024877,5.7,131.2,131.19,7.6225322]
[1765714025082,5.7,131.25,131.19,28.9496234]
[1765714025273,5.7,131.24,131.2,0.66]
[1765714025842,6.21,131.24,131.2,0.66]
[1765714026258,5.7,131.24,131.2,0.66]
[1765714026456,5.7,131.24,131.21,26.67479612]
[1765714027007,5.7,131.24,131.21,27.33479612]
[1765714027155,5.7,131.24,131.22,0.66]
[1765714027359,5.7,131.23,131.21,26.67479612]
[1765714027578,5.7,131.23,131.21,27.33479612]
[1765714028249,5.7,131.23,131.21,35.63479612]
[1765714028977,5.7,131.23,131.22,0.66]
[1765714029176,5.7,131.23,131.21,35.63479612]
[1765714029549,5.7,131.23,131.21,34.97479612]
[1765714030152,6.21,131.23,131.21,34.97479612]
[1765714030358,6.21,131.23,131.21,19.0534258]
[1765714030766,5.7,131.23,131.21,19.0534258]
[1765714031369,5.7,131.23,131.2,7.62195121]
[1765714031565,0.51,131.22,131.2,7.62195121]
[1765714032986,14.50994492,131.21,131.19,7.62238174]
[1765714033186,5.7,131.2,131.19,7.62238174]
[1765714034174,15.01994492,131.2,131.19,7.62238174]
[1765714034376,15.01994492,131.2,131.18,7.62291218]
[1765714034577,0.51,131.19,131.17,7.62369444]
[1765714036079,0.51,131.19,131.15,0.66]
[1765714036080,0.51,131.19,131.16,26.68418018]
[1765714036382,0.51,131.19,131.16,27.34418018]
[1765714037507,0.51,131.19,131.16,7.62427569]
[1765714038912,5.58143869,131.19,131.16,7.62427569]
[1765714039095,0.51,131.19,131.16,7.62427569]
[1765714039300,0.51,131.18,131.16,7.62427569]
[1765714039611,0.51,131.18,131.15,7.62485703]
[1765714040176,0.51,131.18,131.15,26.68699961]
[1765714040415,8.80994492,131.19,131.15,27.34699961]
[1765714040581,9.31994492,131.19,131.15,27.34699961]
[1765714041003,5.7,131.18,131.15,27.34699961]
[1765714041314,6.21,131.18,131.15,27.34699961]
[1765714041885,0.51,131.17,131.15,26.68699961]
[1765714042202,5.7,131.18,131.15,26.68699961]
[1765714042203,6.21,131.18,131.15,26.68699961]
[1765714042403,6.21,131.18,131.15,27.34699961]
[1765714042588,5.7,131.18,131.15,27.34699961]
[1765714042785,6.21,131.18,131.15,26.68699961]
[1765714043301,6.21,131.18,131.15,27.34699961]
[1765714044281,0.51,131.17,131.15,26.68699961]
[1765714044482,6.21,131.18,131.15,26.68699961]
[1765714045015,5.7,131.18,131.15,27.34699961]
[1765714045192,6.21,131.18,131.15,27.34699961]
[1765714045592,5.7,131.18,131.15,27.34699961]
[1765714045908,6.21,131.18,131.15,27.34699961]
[1765714046110,6.21,131.18,131.15,26.68699961]
[1765714046309,6.21,131.18,131.15,27.35699961]
[1765714046896,5.7,131.17,131.16,0.67]
[1765714048016,5.7,131.17,131.16,8.29427569]
[1765714052130,5.7,131.17,131.16,7.62427569]
[1765714053941,5.7,131.17,131.16,8.29427569]
[1765714054544,5.7,131.17,131.16,7.62427569]
[1765714056240,5.7,131.2,131.16,27.35496492]
[1765714056394,5.7,131.2,131.17,0.67]
[1765714057206,5.7,131.2,131.18,7.62311327]
[1765714057725,5.7,131.23,131.19,0.67]
[1765714059424,5.7,131.23,131.2,26.67682925]
[1765714059724,8.80994492,131.25,131.2,34.97682925]
[1765714059928,9.31994492,131.25,131.21,0.67]
[1765714060706,9.31994492,131.25,131.22,26.67276329]
[1765714062731,14.02000001,131.26,131.23,0.67]
[1765714063044,6.21000001,131.26,131.24,7.61962816]
[1765714063506,15.01994493,131.26,131.24,7.61962816]
[1765714064918,5.7,131.25,131.24,7.61962816]
[1765714065321,5.7,131.25,131.23,26.66989243]
[1765714065516,6.21,131.25,131.23,26.66989243]
[1765714065953,0.51,131.24,131.23,7.62020879]
[1765714067149,5.7,131.25,131.22,26.67276329]
[1765714067322,6.21,131.25,131.22,27.34276329]
[1765714067516,6.21,131.25,131.22,26.67276329]
[1765714069843,9.31994492,131.24,131.22,26.67276329]
[1765714070225,8.80994492,131.24,131.22,26.67276329]
[1765714070426,5.7,131.25,131.22,27.34276329]
[1765714070649,6.21,131.25,131.22,27.34276329]
[1765714070829,5.7,131.24,131.23,0.67]
[1765714071221,8.80994493,131.26,131.23,0.67]
[1765714071426,1e-08,131.26,131.24,7.61962816]
[1765714071850,1e-08,131.26,131.25,0.67]
[1765714073457,1e-08,131.26,131.25,8.28904761]
[1765714073664,1e-08,131.26,131.25,7.61904761]
[1765714073958,1e-08,131.26,131.25,8.28904761]
[1765714074324,1e-08,131.26,131.25,7.61904761]
[1765714074572,1e-08,131.26,131.25,8.28904761]
[1765714075839,1e-08,131.26,131.25,7.61904761]
[1765714076367,1e-08,131.26,131.25,8.30904761]
[1765714077745,1e-08,131.26,131.25,7.61904761]
[1765714079269,1e-08,131.26,131.25,8.30904761]
[1765714082377,1e-08,131.26,131.25,7.61904761]
[1765714082671,1e-08,131.26,131.25,8.30904761]
[1765714082880,1e-08,131.26,131.25,7.61904761]
[1765714082881,0.51000001,131.26,131.25,7.61904761]
[1765714083086,0.51000001,131.26,131.12,0.99999999]
[1765714083253,9.09426806,131.24,131.17,7.62369444]
[1765714083465,37.07399934,131.24,131.17,7.62369444]
[1765714083658,0.28432314,131.21,131.17,7.62369444]
[1765714083987,8.80994492,131.2,131.17,7.62369444]
[1765714084189,9.31994492,131.2,131.17,7.62369444]
[1765714084354,8.80994492,131.2,131.16,26.68496492]
[1765714084554,9.31994492,131.2,131.16,26.68496492]
[1765714084858,0.51,131.19,131.16,27.37496492]
[1765714085161,0.51,131.19,131.16,26.68496492]
[1765714087681,0.51,131.19,131.16,19.06068923]
[1765714089089,0.51,131.19,131.16,26.68496492]
[1765714091756,8.80994492,131.2,131.16,27.37496492]
[1765714091958,9.31994492,131.2,131.17,0.69]
[1765714092694,9.31994492,131.2,131.18,7.62311327]
[1765714094395,9.31994492,131.19,131.18,7.62311327]
[1765714094774,8.80994492,131.19,131.16,26.68496492]
[1765714094982,104.6,131.2,131.17,0.69]
[1765714095500,105.11,131.2,131.17,0.69]
[1765714096569,105.11,131.2,131.18,7.62311327]
[1765714100401,5.7,131.19,131.17,7.62369444]
[1765714100608,5.7,131.19,131.17,8.31369444]
[1765714103313,6.21,131.19,131.16,19.75068923]
[1765714103512,6.21,131.19,131.16,19.06068923]
[1765714103513,0.51,131.18,131.16,19.06068923]
[1765714103686,5.7,131.17,131.16,19.75068923]
[1765714105306,5.7,131.17,131.16,35.67496492]
[1765714105501,104.6,131.2,131.16,35.67496492]
[1765714105809,104.6,131.2,131.17,0.69]
[1765714106219,1.1,131.2,131.17,0.69]
[1765714106718,0.51,131.19,131.16,34.98496492]
[1765714106894,9.31994492,131.19,131.16,26.68496492]
[1765714107227,1.1,131.18,131.16,27.34496492]
[1765714108197,1.1,131.18,131.17,0.66]
[1765714108512,1.1,131.18,131.16,27.34496492]
[1765714111120,1.1,131.18,131.17,8.33369444]
[1765714111795,1.1,131.18,131.17,7.62369444]
[1765714112300,8.80994492,131.19,131.17,7.62369444]
[1765714112504,9.31994492,131.19,131.17,7.62369444]
[1765714115126,8.80994492,131.19,131.17,7.62369444]
[1765714115435,8.80994492,131.19,131.17,8.33369444]
[1765714115602,112.92,131.2,131.17,8.33369444]
[1765714115803,113.43,131.2,131.17,8.33369444]
[1765714116328,105.11,131.2,131.17,27.39293054]
[1765714117329,104.6,131.2,131.17,27.39293054]
[1765714117506,105.11,131.2,131.17,27.39293054]
[1765714118629,104.6,131.2,131.17,26.68293054]
[1765714118816,0.51,131.19,131.17,26.68293054]
[1765714119218,0.51,131.19,131.17,19.0592361]
[1765714120900,0.51,131.19,131.17,26.68293054]
[1765714121530,104.6,131.2,131.17,26.68293054]
[1765714121715,105.11,131.2,131.17,26.68293054]
[1765714122116,105.11,131.2,131.17,19.7692361]
[1765714122421,105.11,131.2,131.17,19.0592361]
[1765714123305,105.11,131.2,131.17,26.68293054]
[1765714123707,104.6,131.2,131.17,26.68293054]
[1765714124035,0.51,131.19,131.17,26.68293054]
[1765714124729,105.11,131.2,131.17,26.68293054]
[1765714125835,104.6,131.2,131.18,0.71]
[1765714126149,17.12994492,131.22,131.18,0.71]
[1765714126308,5.08471049,131.21,131.18,0.71]
[1765714126509,17.63994492,131.22,131.18,0.71]
[1765714126709,5.08462797,131.21,131.19,7.6225322]
[1765714126930,17.63994492,131.22,131.19,8.3325322]
[1765714127234,5.08462979,131.21,131.19,8.3325322]
[1765714127534,5.08462979,131.2,131.19,7.6225322]
[1765714128644,5.59462979,131.2,131.18,26.68009491]
[1765714128828,5.08462979,131.19,131.18,26.68009491]
[1765714129028,14.40457471,131.19,131.18,7.62311327]
[1765714129906,8.80994492,131.18,131.14,23.04291342]
[1765714130114,5.08462979,131.17,131.14,19.06290989]
[1765714130349,8.80994492,131.15,131.12,7.62638796]
[1765714130535,5.08462979,131.14,131.11,8.3]
[1765714130846,8.80994492,131.15,131.12,8.33660158]
[1765714131028,5.09364777,131.14,131.12,8.33660158]
[1765714131228,9.31994492,131.15,131.12,8.33660158]
[1765714131426,5.09089214,131.14,131.12,8.33660158]
[1765714131638,9.31994492,131.15,131.12,7.62660158]
[1765714131813,5.09089214,131.14,131.12,7.62660158]
[1765714132018,9.31994492,131.15,131.12,8.33660158]
[1765714132328,8.80994492,131.15,131.13,0.71]
[1765714132535,8.80994492,131.15,131.12,26.69310554]
[1765714132736,8.80994492,131.15,131.12,27.40310554]
[1765714133546,8.83,131.16,131.12,26.69310554]
[1765714133720,5.0875178,131.15,131.13,0.71]
[1765714133923,8.83,131.16,131.13,0.71]
[1765714134120,5.08759675,131.15,131.13,0.71]
[1765714134319,8.83,131.16,131.14,7.62543846]